[Event "Croatian 1A League 2022"]
[Site "Porec"]
[Date "2022.09.25"]
[Round "2.13"]
[White "Motylev, Alexander"]
[Black "Kadric, Denis"]
[Result "1/2-1/2"]
[ECO "C42"]
[WhiteElo "2635"]
[BlackElo "2561"]
[Annotator "TA"]
[PlyCount "31"]
[EventDate "2022.09.24"]
[EventType "team-tourn"]
[EventCountry "CRO"]
[SourceTitle "playchess.com"]
[Source "ChessBase"]
[SourceQuality "1"]
[TimeControl "40/5400+30:1800+30"]

{[%evp 13,31,26,30,33,33,18,26,12,29,27,25,6,8,14,20,0,0,-5,0,-7]} 1. e4 {[%emt 0:00:05]} e5 {[%emt 0:01:10]} 2. Nf3 {[%emt 0:00:04]} Nf6 {[%emt 0:00:06]} 3. Nxe5 {[%emt 0:00:19]} d6 {[%emt 0:00:04]} 4. Nf3 {[%emt 0:00:06]} Nxe4 {[%emt 0:00:02]} 5. Nc3 {[%emt 0:00:08][%cal Bb1c3,Bc3e2,Be2g3][%mdl 32]} Nf6 {[%emt 0:00:04]} 6. d4 {[%emt 0:00:22]} Be7 {[%emt 0:00:06]} 7. Bd3 {[%emt 0:00:10]} O-O {[%emt 0:00:04]} 8. O-O {[%emt 0:00:09] C42: Petroff Defence: 3 Nxe5 and unusual White 3rd moves.} Re8 $1 {[%emt 0:00:39][%mdl 4] is now more promising than 8...Bg4.} 9. h3 {[%emt 0:00:07]} Nbd7 {[%emt 0:00:10]} 10. Ne2 {[%emt 0:03:16] White has an edge.} b6 $5 {[%emt 0:00:25][%mdl 4] An interesting side line.} 11. Ng3 {[%emt 0:03:28]} Bb7 {[%emt 0:00:18]} 12. Re1 {[%emt 0:06:23] [#]} Bf8 $5 $146 {[%emt 0:02:36][%mdl 8] The position is equal. New and interesting.} ({Predecessor:} 12... g6 13. c4 c5 14. d5 b5 15. b3 Qb6 16. a4 bxc4 17. bxc4 Bf8 18. a5 Qc7 {1-0 (39) Tirto (2328)-Sinurat,T (2249) Jakarta 2013}) 13. Rxe8 {[%emt 0:02:41]} Qxe8 {[%emt 0:00:02]} 14. Bf4 {[%emt 0:00:28]} g6 {[%emt 0:03:22]} 15. c4 {[%emt 0:02:02]} Bg7 {[%emt 0:05:50]} 16. Rc1 {[%emt 0:19:07] Weighted Error Value: White=0.09 (flawless) /Black=0.01 (flawless)} 1/2-1/2

[Event "Croatian 1A League 2022"]
[Site "Porec"]
[Date "2022.09.25"]
[Round "2.14"]
[White "Saric, Ibro"]
[Black "Postny, Evgeny"]
[Result "1/2-1/2"]
[ECO "D94"]
[WhiteElo "2542"]
[BlackElo "2573"]
[Annotator "TA"]
[PlyCount "43"]
[EventDate "2022.09.24"]
[EventType "team-tourn"]
[EventCountry "CRO"]
[SourceTitle "playchess.com"]
[Source "ChessBase"]
[SourceQuality "1"]
[TimeControl "40/5400+30:1800+30"]

{[%evp 16,43,56,64,66,65,58,54,65,35,68,81,95,102,85,73,102,58,77,77,91,55,50,34,44,17,27,16,14,20]} 1. d4 {[%emt 0:00:11]} d5 {[%emt 0:00:07]} 2. c4 {[%emt 0:00:39]} c6 {[%emt 0:00:08]} 3. Nc3 {[%emt 0:01:16]} Nf6 {[%emt 0:00:07]} 4. e3 {[%emt 0:01:28]} g6 {[%emt 0:00:42]} 5. Nf3 {[%emt 0:00:55]} Bg7 {[%emt 0:00:07]} 6. cxd5 {[%emt 0:01:30]} cxd5 {[%emt 0:00:18]} 7. Bb5+ {[%emt 0:00:19]} Bd7 {[%emt 0:01:31]} 8. Qb3 {[%emt 0:00:38]} Bxb5 {[%emt 0:05:23]} 9. Qxb5+ {[%emt 0:05:20]} Qd7 {[%emt 0:00:22] D94: Grünfeld: 4 Nf3 Bg7 5 e3.} 10. Ne5 {[%emt 0:00:29]} Qxb5 {[%emt 0:00:08]} 11. Nxb5 {[%emt 0:00:06] [#] Threatens to win with Nc7+.} Na6 {[%emt 0:00:08] Against Nc7+. White is slightly better.} 12. Bd2 {[%emt 0:01:09]} (12. Ke2 {keeps more tension.} Ne4 13. f3 Nec5 14. Bd2) 12... Nd7 {[%emt 0:03:28]} 13. Nd3 {[%emt 0:01:41] White is much more active. The black rooks are badly placed.} Nb6 {[%emt 0:38:59] [#]} 14. Rc1 $146 {[%emt 0:23:43]} ({Predecessor:} 14. b3 Kd7 15. Rc1 e6 16. Ke2 f6 17. Ba5 Bf8 18. Nxa7 Nc4 19. bxc4 Rxa7 20. Bb6 {1-0 (78) Paschall,W (2371)-Li,B (2383) Balatonlelle 2017}) 14... Kd7 {[%emt 0:02:53]} 15. Ke2 {[%emt 0:04:31]} Rhc8 {[%emt 0:07:22]} 16. Rxc8 {[%emt 0:14:22]} Nxc8 {[%emt 0:00:06]} 17. Rc1 {[%emt 0:00:34]} Nd6 {[%emt 0:01:06]} 18. Nxd6 {[%emt 0:04:17]} Kxd6 {[%emt 0:03:24]} 19. a4 {[%emt 0:03:27]} Kd7 {[%emt 0:03:23]} 20. f3 {[%emt 0:12:17]} Rc8 {[%emt 0:00:22]} 21. Rxc8 {[%emt 0:00:43]} Kxc8 {[%emt 0:00:08]} 22. Be1 {[%emt 0:00:47] Weighted Error Value: White=0.17 (very precise) /Black=0.10 (very precise)} 1/2-1/2

[Event "Croatian 1A League 2022"]
[Site "Porec"]
[Date "2022.09.25"]
[Round "2.15"]
[White "Bosiocic, Marin"]
[Black "Saric, Ante"]
[Result "1-0"]
[ECO "E17"]
[WhiteElo "2548"]
[BlackElo "2510"]
[Annotator "TA"]
[PlyCount "137"]
[EventDate "2022.09.24"]
[EventType "team-tourn"]
[EventCountry "CRO"]
[SourceTitle "playchess.com"]
[Source "ChessBase"]
[SourceQuality "1"]
[TimeControl "40/5400+30:1800+30"]

{[%evp 22,137,11,10,4,0,0,0,0,-27,-18,-43,-37,-37,-25,-129,-129,-142,-90,-89,-90,-110,-95,-82,-37,-43,-35,-51,-45,-55,-28,-27,-19,-18,-18,-24,0,-17,-15,-9,-12,-15,-29,-44,-39,-25,0,0,0,0,0,0,0,0,0,-52,20,20,20,20,20,28,35,35,35,35,35,35,219,218,835,421,1445,1260,1841,1365,1583,1861,2095,1932,1000,2337,2612,2406,2426,2131,1835,1632,2841,6107,9024,6199,7615,5435,5373,5181,5081,4204,29969,29970,29970,29969,29979,29980,29980,29980,29980,29978,29980,29980,29980,29981,29985,29986,29986,29987,29988,29988]} 1. Nf3 {[%emt 0:00:14]} Nf6 {[%emt 0:00:42]} 2. g3 {[%emt 0:00:23]} d5 {[%emt 0:00:05]} 3. Bg2 {[%emt 0:00:19]} e6 {[%emt 0:00:06]} 4. O-O {[%emt 0:00:13]} Be7 {[%emt 0:00:04]} 5. c4 {[%emt 0:00:23]} O-O {[%emt 0:00:08]} 6. b3 {[%emt 0:00:17]} b6 {[%emt 0:00:06]} 7. Bb2 {[%emt 0:00:37]} Bb7 {[%emt 0:00:06]} 8. cxd5 {[%emt 0:01:38]} Nxd5 {[%emt 0:00:08]} 9. d4 {[%emt 0:02:47]} Nd7 {[%emt 0:01:03]} 10. Nc3 {[%emt 0:01:11]} Nxc3 {[%emt 0:00:52]} 11. Bxc3 {[%emt 0:00:10]} c5 {[%emt 0:00:13]} 12. Rc1 {[%emt 0:16:24]} Rc8 {[%emt 0:02:57] E17: Queen's Indian: 4 g3 Bb7 5 Bg2 Be7.} 13. Bb2 {[%emt 0:00:37] [#]} Bf6 $146 {[%emt 0:15:25]} ({Predecessor:} 13... Nf6 14. Qd3 Be4 15. Qe3 Qd5 16. Rfd1 Qb7 17. Ne1 Bxg2 18. Nxg2 h6 19. Nf4 cxd4 20. Bxd4 Rxc1 21. Rxc1 {1-0 (54) Koneru,H (2586)-Hou,Y (2658) Chess.com INT 2020}) 14. e3 {[%emt 0:01:57]} Rc7 {[%emt 0:13:00] The position is equal.} 15. Ba3 {[%emt 0:08:11]} Qc8 {[%emt 0:05:13]} 16. Re1 {[%emt 0:10:38]} Rd8 {[%emt 0:02:20]} 17. Qc2 {[%emt 0:00:46]} Qa8 {[%emt 0:16:36]} 18. e4 {[%emt 0:01:23]} (18. Qe2 $11) 18... Rcc8 $17 {[%emt 0:09:40]} 19. Qe2 {[%emt 0:12:07]} Bxd4 {[%emt 0:02:28]} (19... cxd4 $142 20. Nd2 Rc3) 20. Nxd4 {[%emt 0:00:28]} cxd4 {[%emt 0:00:04]} 21. Be7 {[%emt 0:02:46]} Re8 {[%emt 0:03:30]} 22. Bd6 {[%emt 0:00:14]} Rc6 {[%emt 0:07:56]} 23. Rxc6 {[%emt 0:02:43]} Bxc6 {[%emt 0:00:04]} 24. f3 {[%emt 0:04:27]} e5 {[%emt 0:03:42]} 25. Rc1 {[%emt 0:01:12]} Nf8 {[%emt 0:02:31]} (25... Re6 $5 {[%cal Re6d6]} 26. Ba3 a5 $15) 26. Qc4 {[%emt 0:04:25]} Bd7 {[%emt 0:03:10]} 27. Qd5 {[%emt 0:03:14]} Qxd5 {[%emt 0:01:55]} 28. exd5 {[%emt 0:00:08]} f6 {[%emt 0:00:31]} 29. Bf1 {[%emt 0:00:48]} Rc8 {[%emt 0:01:25]} 30. Bc7 {[%emt 0:01:51]} b5 {[%emt 0:00:54]} 31. Rc5 {[%emt 0:01:31]} a6 {[%emt 0:01:53]} 32. Bd3 {[%emt 0:01:34]} Kf7 {[%emt 0:02:07]} 33. b4 {[%emt 0:00:18]} Ke7 {[%emt 0:01:18]} 34. f4 {[%emt 0:04:57]} exf4 {[%emt 0:00:32]} 35. gxf4 {[%emt 0:00:40]} Kf7 {[%emt 0:02:17]} 36. Kf2 {[%emt 0:01:36]} Re8 {[%emt 0:00:38] Hoping for ...Re3.} 37. Bd6 {[%emt 0:01:55] And now Rc7 would win.} Re3 {[%emt 0:00:56]} 38. Bc2 {[%emt 0:00:39]} ({White should try} 38. Bb1 $1 $11 Bg4 39. Rc7+ Kg8 40. Ra7) 38... Rc3 {[%emt 0:01:32]} (38... Ng6 $1 $15) 39. Rxc3 $11 {[%emt 0:02:07]} dxc3 {[%emt 0:00:01][%mdl 4096] Endgame KBB-KBN} 40. Ke3 {[%emt 0:00:00]} Ng6 {[%emt 0:00:00]} 41. Kd4 {[%emt 0:01:42]} Ne7 {[%emt 0:04:20]} 42. Bxe7 {[%emt 0:01:32]} Kxe7 {[%emt 0:00:05]} 43. Bxh7 $14 {[%emt 0:00:29] KB-KB} Kd6 {[%emt 0:03:02]} 44. Be4 {[%emt 0:00:23]} g5 $2 {[%emt 0:10:38] A mistake that costs the game.} ({Better is} 44... Be8 $14) 45. Kxc3 $18 {[%emt 0:05:30]} gxf4 $2 {[%emt 0:00:35]} (45... Bc8 46. fxg5 fxg5) 46. Bf3 {[%emt 0:00:54] Kd4 is the strong threat.} Bh3 {[%emt 0:01:37]} (46... Ke5 $142 47. h4 Bf5) 47. Kd4 {[%emt 0:02:40]} f5 {[%emt 0:00:31]} 48. Bh1 {[%emt 0:06:10]} Bg4 {[%emt 0:03:05]} 49. h4 {[%emt 0:02:23]} Be2 {[%emt 0:01:59]} 50. a3 {[%emt 0:02:40]} Bh5 {[%emt 0:01:44]} 51. Kd3 $1 {[%emt 0:00:00]} Bg4 {[%emt 0:04:37] [#]} 52. Kd2 $1 {[%emt 0:00:00]} Bh5 {[%emt 0:02:48] [#]} 53. Ke1 $1 {[%emt 0:00:13]} Ke5 {[%emt 0:00:36]} 54. Kf2 {[%emt 0:00:26]} Be8 {[%emt 0:01:54]} 55. Bf3 {[%emt 0:00:16]} Bg6 {[%emt 0:00:32]} 56. Ke2 {[%emt 0:00:35]} Bf7 {[%emt 0:00:31]} 57. h5 {[%emt 0:01:52]} Be8 {[%emt 0:00:28]} 58. h6 {[%emt 0:01:00] White wants to mate with h7.} Bg6 {[%emt 0:00:01]} 59. Kf2 {[%emt 0:01:46]} Kf6 {[%emt 0:00:25]} 60. d6 {[%emt 0:01:01] White mates.} Ke6 {[%emt 0:00:16]} 61. Bb7 {[%emt 0:00:22]} a5 {[%emt 0:02:10]} 62. bxa5 {[%emt 0:00:30]} Kxd6 {[%emt 0:00:05]} 63. Kf3 {[%emt 0:00:17]} Kc7 {[%emt 0:00:20]} 64. a6 {[%emt 0:01:07]} Kb6 {[%emt 0:00:15]} 65. Kxf4 {[%emt 0:00:11]} Bh7 {[%emt 0:00:18]} 66. Bc8 {[%emt 0:00:08]} Bg8 {[%emt 0:01:06]} 67. Kxf5 {[%emt 0:00:36]} Bh7+ {[%emt 0:00:28]} 68. Kf6 {[%emt 0:00:05]} Be4 {[%emt 0:00:07]} 69. Bf5 {[%emt 0:01:30] Weighted Error Value: White=0.19 (very precise) /Black=0.41} 1-0

[Event "Croatian 1A League 2022"]
[Site "Porec"]
[Date "2022.09.25"]
[Round "2.16"]
[White "Plenca, Julijan"]
[Black "Fucak, Emilio Milko"]
[Result "1-0"]
[ECO "C03"]
[WhiteElo "2447"]
[BlackElo "2187"]
[Annotator "TA"]
[PlyCount "175"]
[EventDate "2022.09.24"]
[EventType "team-tourn"]
[EventCountry "CRO"]
[SourceTitle "playchess.com"]
[Source "ChessBase"]
[SourceQuality "1"]
[TimeControl "40/5400+30:1800+30"]

{[%evp 15,175,0,0,0,0,0,28,-6,2,16,23,0,12,14,33,0,25,6,25,17,14,20,67,67,60,46,56,48,52,42,45,57,56,54,61,59,75,70,76,59,58,0,80,23,64,12,16,20,47,23,53,27,33,0,0,-31,-39,-31,-26,-26,0,-69,-76,-66,0,0,0,0,0,0,0,0,0,-27,-36,-68,-66,-112,-16,-191,-29,-39,0,0,0,0,0,-2,0,0,0,0,0,0,0,0,0,0,0,0,64,64,64,64,64,64,64,64,64,64,64,64,64,64,64,64,64,64,64,64,64,64,64,64,64,64,64,64,64,64,64,64,64,64,64,64,64,64,64,64,64,64,64,64,64,64,64,64,64,64,64,64,64,64,71,71,71,71,71,71,75,67]} 1. e4 {[%emt 0:00:02]} e6 {[%emt 0:00:06]} 2. d4 {[%emt 0:00:09]} d5 {[%emt 0:00:04]} 3. Nd2 {[%emt 0:00:07]} Be7 {[%emt 0:00:18]} 4. Ngf3 {[%emt 0:02:38]} Nf6 {[%emt 0:00:28]} 5. Bd3 {[%emt 0:00:14]} c5 {[%emt 0:00:49]} 6. exd5 {[%emt 0:00:41]} exd5 {[%emt 0:00:52]} 7. dxc5 {[%emt 0:00:18]} Bxc5 {[%emt 0:00:46]} 8. O-O {[%emt 0:00:23]} O-O {[%emt 0:00:25]} 9. Nb3 {[%emt 0:00:34] C03: French Tarrasch: Unusual Black 3rd moves.} Bb6 {[%emt 0:01:01]} 10. h3 {[%emt 0:00:48]} h6 {[%emt 0:05:08]} 11. Bf4 {[%emt 0:03:16] White has an edge.} Nc6 {[%emt 0:00:39] [#]} 12. Re1 $146 {[%emt 0:01:53]} ({Predecessor:} 12. c3 Re8 13. Bc2 Ne4 14. Nbd4 Qf6 15. Bh2 Bd7 16. Qd3 Rad8 17. Rae1 g6 18. Re2 {1-0 (45) Nebolsina,V (2220)-Bivol,A (2356) Sochi 2017}) 12... Re8 {[%emt 0:07:20]} 13. Rxe8+ {[%emt 0:07:58]} Qxe8 {[%emt 0:00:11]} 14. c3 {[%emt 0:04:30]} Be6 {[%emt 0:05:16]} 15. Nfd4 {[%emt 0:03:20]} Qd7 {[%emt 0:18:24]} 16. Be3 {[%emt 0:04:01]} Ne5 {[%emt 0:03:12][%cal Bc6e5,Be5f7,Bf7h8][%mdl 32]} 17. Bb5 {[%emt 0:08:12]} Qe7 {[%emt 0:03:54]} 18. Nxe6 {[%emt 0:05:28]} fxe6 {[%emt 0:11:25]} (18... Bxe3 $11 {is more appropriate.} 19. Nxg7 Bxf2+ 20. Kxf2 Kxg7) 19. Bxb6 $14 {[%emt 0:01:06]} axb6 {[%emt 0:00:02]} 20. Qd4 {[%emt 0:02:01]} Qd6 {[%emt 0:01:38]} 21. Re1 {[%emt 0:01:24]} Nf7 {[%emt 0:01:51]} 22. a3 {[%emt 0:02:47]} e5 {[%emt 0:08:25]} 23. Qe3 {[%emt 0:01:16]} Rd8 {[%emt 0:00:38]} 24. Bd3 {[%emt 0:00:41]} Kf8 {[%emt 0:04:22]} 25. Rd1 {[%emt 0:02:29]} Qc7 {[%emt 0:00:44]} 26. Bg6 {[%emt 0:01:36]} Nh8 {[%emt 0:00:17]} 27. Bf5 {[%emt 0:00:43] White is more active.} Nf7 {[%emt 0:00:16]} 28. Bg6 {[%emt 0:03:00]} Nh8 $1 {[%emt 0:00:07]} 29. Qg3 {[%emt 0:00:27]} (29. Bb1 $16) 29... Qc4 {[%emt 0:08:11]} 30. Nc1 {[%emt 0:02:30]} (30. Bc2 $14) 30... Nxg6 $11 {[%emt 0:04:34]} 31. Qxg6 {[%emt 0:00:30]} Re8 {[%emt 0:01:34]} 32. Qg3 {[%emt 0:03:03]} Qb5 {[%emt 0:00:35]} 33. Nd3 {[%emt 0:00:21]} e4 {[%emt 0:02:59]} 34. Nf4 {[%emt 0:02:19]} Qxb2 {[%emt 0:01:06]} 35. Ng6+ {[%emt 0:04:45][%cal Bf4g6,Bg6h4,Bh4f5][%mdl 32]} Kg8 {[%emt 0:00:58]} 36. Nh4 $1 {[%emt 0:01:05]} e3 {[%emt 0:02:23]} ({Resist} 36... Qxa3 37. Nf5 Qf8 38. Nxh6+ Kh7 39. Nf5 $14) 37. fxe3 {[%emt 0:03:30]} Ne4 {[%emt 0:01:15]} 38. Qg4 {[%emt 0:02:31]} ({White should try} 38. Qg6 $1 $11 Qf2+ 39. Kh2) 38... Qf2+ $15 {[%emt 0:02:16]} (38... Qxc3 39. Nf5 $14) 39. Kh2 {[%emt 0:00:34] [#] Threatens to win with Nf5.} Qxe3 {[%emt 0:02:29]} ({Black should play} 39... Nf6 $15 40. Qf4 Qxe3 41. Qxe3 Rxe3) 40. Nf5 $11 {[%emt 0:00:00][%csl Gf5][%cal Rg4g7]} Qxc3 {[%emt 0:00:00]} 41. Nxh6+ {[%emt 0:09:13]} Kh7 {[%emt 0:02:57]} 42. Nf5 {[%emt 0:00:08] Intending Qh5+ and mate. Chess con chili.} Qc7+ {[%emt 0:16:33]} 43. Kg1 {[%emt 0:00:25] [#] Qh5+ is the strong threat.} Qc5+ {[%emt 0:01:04]} 44. Nd4 {[%emt 0:02:50]} Nf6 {[%emt 0:04:26] Against Qh5+} 45. Qf5+ {[%emt 0:01:36]} Kg8 {[%emt 0:01:57]} 46. Kh1 {[%emt 0:00:18]} (46. Qd3 $15) 46... Ne4 {[%emt 0:02:43]} ({Better is} 46... Qxa3 $17 47. Qf4 Qb4) 47. Qg6 $2 {[%emt 0:01:10]} (47. Kh2 $11 {and White has nothing to worry.}) 47... Re5 $2 {[%emt 0:02:29]} (47... Re7 $19 {aiming for ...Nf2+.} 48. Kh2 (48. Ne6 $2 Qc2 $19) 48... Qc7+ 49. Kg1 Nc3) 48. Kh2 {[%emt 0:03:41]} Qd6 {[%emt 0:02:10]} 49. Qxd6 {[%emt 0:00:22]} Nxd6 {[%emt 0:00:02][%mdl 4096] Endgame KRN-KRN} 50. Nf3 {[%emt 0:00:40]} Rf5 {[%emt 0:00:12]} 51. h4 {[%emt 0:00:41]} Nc4 {[%emt 0:00:29]} 52. a4 {[%emt 0:00:21]} Ne3 {[%emt 0:00:50]} 53. Rb1 {[%emt 0:00:29]} Rf4 {[%emt 0:00:29]} 54. Rxb6 {[%emt 0:00:31]} Rxa4 {[%emt 0:00:05]} 55. Rxb7 {[%emt 0:00:53]} Ra2 {[%emt 0:00:37]} 56. Ng5 {[%emt 0:01:10][%cal Rb7b8]} g6 {[%emt 0:00:03]} 57. Kg3 {[%emt 0:01:54]} Rxg2+ {[%emt 0:01:55]} (57... Nf5+ $11 58. Kf4 Rxg2) 58. Kf3 $1 $14 {[%emt 0:00:12]} d4 {[%emt 0:00:25]} 59. Rb8+ {[%emt 0:00:13]} Kg7 {[%emt 0:00:06]} 60. Ne6+ {[%emt 0:00:04]} Kf7 {[%emt 0:00:27]} 61. Nxd4 {[%emt 0:00:14]} Rg4 {[%emt 0:00:09]} 62. Kxe3 {[%emt 0:00:26] Strongly threatening Rb7+.} Rxh4 {[%emt 0:00:03] KRN-KR} 63. Rb7+ {[%emt 0:00:13]} Kf6 {[%emt 0:00:10]} 64. Rb6+ {[%emt 0:00:03]} Kf7 {[%emt 0:00:05]} 65. Nf3 {[%emt 0:00:09]} Ra4 {[%emt 0:01:06]} 66. Ne5+ {[%emt 0:00:05]} Ke7 {[%emt 0:00:08]} 67. Rxg6 {[%emt 0:00:07]} Rh4 {[%emt 0:01:11]} 68. Ra6 {[%emt 0:00:16] Threatening mate with Ng6+.} Kd8 {[%emt 0:00:56]} 69. Ra7 {[%emt 0:00:09]} Kc8 {[%emt 0:00:15]} 70. Kd3 {[%emt 0:00:21]} Rb4 {[%emt 0:00:31]} 71. Nc4 {[%emt 0:00:19]} Kb8 {[%emt 0:00:37]} 72. Ra1 {[%emt 0:00:27]} Kc7 {[%emt 0:01:04]} 73. Kd4 {[%emt 0:00:05]} Kd7 {[%emt 0:00:33]} 74. Kc5 {[%emt 0:00:15]} Rb3 {[%emt 0:00:37]} 75. Re1 {[%emt 0:00:12]} Rc3 {[%emt 0:00:23]} 76. Kd4 {[%emt 0:00:06]} Rc2 {[%emt 0:00:24]} 77. Kd5 {[%emt 0:00:05]} Rg2 {[%emt 0:00:52]} 78. Re6 {[%emt 0:02:10]} Rg1 {[%emt 0:00:30]} 79. Ne5+ {[%emt 0:00:14]} Kc7 {[%emt 0:00:07]} 80. Re7+ {[%emt 0:00:05]} Kb6 {[%emt 0:00:22]} 81. Nc4+ {[%emt 0:00:06]} Kb5 {[%emt 0:00:51]} 82. Rb7+ {[%emt 0:00:07]} Ka6 {[%emt 0:00:55]} 83. Rb6+ {[%emt 0:00:16]} Ka7 {[%emt 0:00:05]} 84. Rb2 {[%emt 0:00:05]} Rc1 {[%emt 0:01:24]} 85. Rb4 {[%emt 0:00:14] White is better.} Rc2 {[%emt 0:01:09]} 86. Kc6 {[%emt 0:00:14]} Rc1 {[%emt 0:01:04]} 87. Kc7 {[%emt 0:00:45][%cal Rb4a4]} Ka6 {[%emt 0:00:33]} 88. Kb8 {[%emt 0:00:08] Weighted Error Value: White=0.19 (very precise) /Black=0.18 (very precise)} 1-0

[Event "Croatian 1A League 2022"]
[Site "Porec"]
[Date "2022.09.25"]
[Round "2.17"]
[White "Medancic, Rikard"]
[Black "Plenca, Jadranko"]
[Result "0-1"]
[ECO "D00"]
[WhiteElo "2120"]
[BlackElo "2412"]
[Annotator "TA"]
[PlyCount "126"]
[EventDate "2022.09.24"]
[EventType "team-tourn"]
[EventCountry "CRO"]
[SourceTitle "playchess.com"]
[Source "ChessBase"]
[SourceQuality "1"]
[TimeControl "40/5400+30:1800+30"]

{[%evp 9,126,-9,15,16,122,110,141,143,134,129,170,165,149,144,130,130,165,148,162,156,170,157,152,107,112,109,119,118,96,96,185,135,270,286,268,258,261,219,315,238,258,187,212,220,225,157,167,38,39,42,43,22,16,19,17,0,0,-52,-51,-88,-92,-206,-166,-357,-144,-150,-156,-137,-150,-183,-193,-230,-182,-213,-133,-971,-945,-840,-745,-2636,-1762,-12835,-12835,-12836,-12836,-12837,-12837,-12837,-12838,-12838,-12839,-12841,-12841,-12841,-12839,-12842,-12843,-12849,-12848,-27999,-27999,-27999,-27999,-27999,-27999,-27999,-27999,-27999,-27999,-27999,-27999,-27999,-27999,-27999,-27999,-27999,-27999,-27999,-27999]} 1. d4 {[%emt 0:01:52]} Nf6 {[%emt 0:00:41]} 2. Bf4 {[%emt 0:00:31]} d5 {[%emt 0:01:24]} 3. e3 {[%emt 0:01:23]} c5 {[%emt 0:00:33]} 4. dxc5 {[%emt 0:01:53]} Nc6 {[%emt 0:01:14]} 5. Bb5 {[%emt 0:03:35]} Qa5+ {[%emt 0:10:53]} 6. Nc3 {[%emt 0:00:36] Threatening a3. D00: 1 d4 d5: Unusual lines.} e6 {[%emt 0:05:23]} (6... a6 $11 7. Bxc6+ bxc6) 7. a3 $1 $16 {[%emt 0:06:23]} Ne4 {[%emt 0:02:55]} 8. Nge2 {[%emt 0:01:09] White is clearly better.} Nxc3 {[%emt 0:01:09]} 9. Nxc3 {[%emt 0:00:14][%cal Oe3e4]} Be7 {[%emt 0:00:17]} 10. b4 {[%emt 0:02:15]} Qd8 {[%emt 0:00:10]} 11. Rb1 {[%emt 0:09:20]} O-O {[%emt 0:00:31]} 12. O-O {[%emt 0:07:18]} Bf6 {[%emt 0:01:27]} 13. Qd2 {[%emt 0:05:19] [#]} e5 $146 {[%emt 0:01:09]} ({Predecessor:} 13... Ne5 14. Rfd1 a6 15. Be2 Ng6 16. Bg3 Re8 17. Na4 b5 18. cxb6 Bd7 19. Nc5 Bc6 {1-0 (30) Balabayeva,K (2177)-Gatterer,F (2167) Chess.com INT 2022}) 14. Bg3 {[%emt 0:00:17]} Be6 {[%emt 0:00:08]} 15. Rfd1 {[%emt 0:01:05][%cal Rc3d5]} Ne7 {[%emt 0:00:48]} 16. f4 {[%emt 0:07:39]} e4 {[%emt 0:04:00]} 17. Qe1 {[%emt 0:05:03]} Qc8 {[%emt 0:00:52]} 18. Bh4 {[%emt 0:00:29] Strongly threatening Bxf6.} Bxh4 {[%emt 0:03:20]} 19. Qxh4 {[%emt 0:00:59]} Nf5 {[%emt 0:00:10]} (19... f6 $16) 20. Qf2 {[%emt 0:05:45]} (20. Qe1 $18) 20... Rd8 {[%emt 0:02:10]} (20... b6 $16) 21. g4 $18 {[%emt 0:01:51]} Ne7 {[%emt 0:00:50]} 22. f5 {[%emt 0:00:37]} Bd7 {[%emt 0:00:04]} 23. Be2 {[%emt 0:09:07] And now f6 would win.} Qc6 {[%emt 0:02:13]} (23... Bc6 {might work better.} 24. Rd2 f6) 24. Nb5 {[%emt 0:04:12]} b6 {[%emt 0:01:56]} 25. Nd4 {[%emt 0:00:25]} Qc7 {[%emt 0:02:01]} 26. f6 {[%emt 0:06:03]} Ng6 {[%emt 0:00:22]} 27. c6 {[%emt 0:00:50]} Bxc6 {[%emt 0:00:42]} 28. Rdc1 {[%emt 0:02:40]} ({White should try} 28. fxg7 $18 {Threatens to win with Nf5.} Kxg7 29. Rbc1 (29. Rf1 Kg8 $16)) 28... Bd7 $14 {[%emt 0:02:45]} 29. c4 {[%emt 0:00:26]} dxc4 $1 {[%emt 0:00:19]} 30. Bxc4 {[%emt 0:01:11]} Qe5 {[%emt 0:00:37]} (30... Bxg4 $2 31. Be6 $1 {[%mdl 512]} Qe5 32. Bxg4 $18) 31. fxg7 {[%emt 0:00:20]} Qxg7 {[%emt 0:00:05]} 32. h3 {[%emt 0:03:32]} Ne5 {[%emt 0:03:32]} 33. Be2 {[%emt 0:00:45]} (33. Qg3 $11) 33... h5 $15 {[%emt 0:00:42][%cal Rh5g4]} 34. Qf4 {[%emt 0:03:57]} hxg4 {[%emt 0:00:53]} 35. Qxe4 {[%emt 0:00:22] [#]} (35. Kh2 $17) 35... Nf3+ $1 $19 {[%emt 0:01:11]} (35... gxh3+ 36. Kh2 $11) 36. Kf2 $2 {[%emt 0:01:13]} (36. Kh1 {was the only chance.} Ng5 37. Qf4 Nxh3 38. Qg3) 36... Nxd4 {[%emt 0:03:18]} ({Wrong is} 36... Nd2 $2 37. Qf4 g3+ 38. Kg2 Nxb1 39. Rxb1 $17) (36... Ng5 $19 37. Qg2 gxh3 38. Qxg5 Qxg5) 37. Qxd4 $17 {[%emt 0:04:12]} Qxd4 {[%emt 0:00:19] Dancing on a razor blade.} 38. exd4 {[%emt 0:00:06]} gxh3 {[%emt 0:00:04]} ({Stronger than} 38... Bf5 39. Rb3 $17) 39. Rg1+ {[%emt 0:00:48] [#]} Kf8 $1 {[%emt 0:00:07]} 40. Bg4 {[%emt 0:00:00]} Rac8 {[%emt 0:00:00]} 41. Bxd7 {[%emt 0:07:33]} Rxd7 {[%emt 0:04:11]} 42. Rbc1 $2 {[%emt 0:04:07][%mdl 8192] Prevents Rc2+. Now White is beyond hope.} (42. Rg3 $17) 42... Rxc1 $19 {[%emt 0:01:59]} 43. Rxc1 {[%emt 0:00:07]} Rxd4 {[%emt 0:00:02][%mdl 4096] Endgame KR-KR} 44. Rc7 {[%emt 0:00:34]} a5 {[%emt 0:01:17]} 45. bxa5 {[%emt 0:03:05]} bxa5 {[%emt 0:00:05]} 46. Rc3 {[%emt 0:00:08]} Rd2+ {[%emt 0:00:28]} 47. Kg1 {[%emt 0:00:09]} h2+ {[%emt 0:00:06]} ({Don't blunder} 47... Rg2+ $2 48. Kf1 $19) 48. Kh1 {[%emt 0:00:07]} Ra2 {[%emt 0:00:04]} 49. Re3 {[%emt 0:02:19]} f6 {[%emt 0:00:31][%cal Bf7f6,Bf6f5][%mdl 32]} 50. Rf3 {[%emt 0:01:10]} Kf7 {[%emt 0:00:06]} 51. Re3 {[%emt 0:00:06]} Kg6 {[%emt 0:00:13]} 52. Rb3 {[%emt 0:02:02]} f5 {[%emt 0:00:22]} 53. a4 {[%emt 0:02:18]} Rxa4 {[%emt 0:00:20]} 54. Kxh2 {[%emt 0:00:06]} Kg5 {[%emt 0:00:04] Black mates.} 55. Kg3 {[%emt 0:00:13]} Rb4 {[%emt 0:00:22]} 56. Rc3 {[%emt 0:00:07]} a4 {[%emt 0:00:05][%cal Ba5a4,Ba4a3][%mdl 32]} 57. Rc8 {[%emt 0:00:02]} Rb3+ {[%emt 0:00:16]} 58. Kf2 {[%emt 0:00:06]} a3 {[%emt 0:00:15]} 59. Rc4 {[%emt 0:00:10]} f4 {[%emt 0:01:24]} 60. Rc8 {[%emt 0:00:31]} Kg4 {[%emt 0:00:29]} 61. Rg8+ {[%emt 0:00:15]} Kf5 {[%emt 0:00:13]} 62. Re8 {[%emt 0:00:11]} Rc3 {[%emt 0:01:43]} 63. Ke2 {[%emt 0:00:33]} Re3+ {[%emt 0:00:06] Weighted Error Value: White=0.75/Black=0.25 (precise)} 0-1